fUSD/lending_fUSD_20240220
["ID","MTS","AMOUNT","RATE_DAILY","PERIOD"]
[314591521,1708438238516,-421.29961185,0.000355,30]
[314591522,1708438238526,-221526.1073,0.00035514,2]
[314591524,1708438238535,-154.23,0.00035574,2]
[314591525,1708438238544,-151.78,0.000356,2]
[314591527,1708438238554,-186.01068187,0.00035614,4]
[314591528,1708438238563,-2642.45594542,0.00035615,4]
[314591529,1708438238574,-1500.0,0.00035616,10]
[314591530,1708438238583,-196.02,0.00035622,2]
[314591531,1708438238592,-262.62270052,0.00035632,2]
[314591533,1708438238605,-6560.29212596,0.000357,2]
[314591535,1708438238616,-167.07,0.00035764,2]
[314591536,1708438238625,-500.0,0.0003579,2]
[314591540,1708438238818,-196.02,0.00035794,2]
[314591541,1708438238828,-1188.25,0.00035798,2]
[314591542,1708438238838,-374.70754577,0.00035889,30]
[314591543,1708438238848,-196.02,0.00035966,2]
[314591544,1708438238859,-1000.0,0.00036129,2]
[314591545,1708438238869,-9287.75683747,0.00036389,2]
[314591546,1708438238881,-9287.75683744,0.00036478,2]
[314591547,1708438238890,-1015.01051749,0.00036479,2]
[314591548,1708438238899,-150.0,0.000368,2]
[314591549,1708438238912,-1188.25,0.00037075,2]
[314591550,1708438238921,-425.4,0.00037129,2]
[314591551,1708438238931,-454.88,0.00037436,2]
[314591552,1708438238941,-462.20626296,0.00037485,8]
[314591553,1708438238951,-207.22728549,0.00037485,8]
[314591554,1708438238961,-180.0,0.00037671,2]
[314591555,1708438238970,-364737.110951,0.000379,2]
[314591556,1708438238980,-174.39240563,0.00038056,2]
[314591557,1708438238990,-1015.01051749,0.00038058,2]
[314591558,1708438238999,-9287.75683744,0.00038156,2]
[314591559,1708438239010,-1188.25,0.00038352,2]
[314591560,1708438239019,-152.3,0.00038356,2]
[314591561,1708438239028,-1092.22,0.00038356,15]
[314591562,1708438239037,-5846.0,0.000384,2]
[314591563,1708438239046,-425.4,0.00038773,2]
[314591564,1708438239055,-162.57744651,0.00038882,9]
[314591565,1708438239065,-5456.52946132,0.000389,3]
[314591566,1708438239075,-155.0,0.000389,2]
[314591567,1708438239085,-177.58,0.000389,2]
[314591568,1708438239094,-516.82,0.000389,30]
[314591569,1708438239104,-150.1,0.000389,2]
[314591570,1708438239113,-155.0,0.0003893,7]
[314591571,1708438239122,-155.0,0.00039204,7]
[314591572,1708438239132,-196.960011,0.00039273,2]
[314591573,1708438239142,-180.529012,0.00039273,2]
[314591574,1708438239151,-158.524245,0.00039273,2]
[314591575,1708438239166,-220.561111,0.00039273,2]
[314591576,1708438239176,-198.205354,0.00039273,2]
[314591577,1708438239186,-171.412714,0.00039273,2]
[314591578,1708438239195,-164.17083,0.00039273,2]
[314591579,1708438239205,-164.170831,0.00039273,2]
[314591580,1708438239216,-171.412714,0.00039273,2]
[314591581,1708438239225,-7427.0,0.00039294,2]
[314591582,1708438239235,-5636.0,0.00039294,2]
[314591583,1708438239244,-2292.0,0.00039294,2]
[314591584,1708438239253,-19872.0,0.00039294,2]
[314591585,1708438239262,-42635.0,0.00039294,2]
[314591586,1708438239271,-8174.0,0.00039294,2]
[314591587,1708438239281,-2931.0,0.00039294,2]
[314591588,1708438239290,-4103.0,0.00039294,2]
[314591589,1708438239299,-241.964,0.00039294,2]
[314591590,1708438239310,-208.036,0.00039294,2]
[314591591,1708438239320,-1038.0,0.00039294,2]
[314591592,1708438239330,-177.58,0.00039448,2]
[314591593,1708438239339,-155.0,0.00039478,7]
[314591594,1708438239348,-151.0,0.00039532,7]
[314591595,1708438239358,-462.20626296,0.00039554,9]
[314591596,1708438239368,-207.22728549,0.00039554,9]
[314591597,1708438239377,-726.18031017,0.00039607,11]
[314591598,1708438239386,-1188.25,0.0003963,2]
[314591599,1708438239396,-1015.01051749,0.00039637,2]
[314591600,1708438239406,-454.88,0.00039699,2]
[314591601,1708438239417,-300.0,0.000397,2]
[314591602,1708438239426,-150.0,0.000397,2]
[314591603,1708438239435,-5846.28214187,0.000397,2]
[314591604,1708438239444,-155.0,0.00039752,7]
[314591605,1708438239454,-220.561111,0.00039764,2]
[314591606,1708438239463,-725.6637,0.0003978,3]
[314591607,1708438239473,-210.60497362,0.0003978,2]
[314591608,1708438239483,-11140.67285052,0.0003978,2]
[314591609,1708438239493,-531.48704841,0.0003978,2]
[314591610,1708438239502,-651.54682658,0.0003978,2]
[314591611,1708438239511,-284.99277418,0.0003978,2]
[314591612,1708438239521,-1041.8181149,0.0003978,2]
[314591613,1708438239530,-890.37,0.000398,3]
[314591614,1708438239539,-890.37,0.000398,3]
[314591615,1708438239549,-890.37,0.000398,3]
[314591616,1708438239558,-890.37,0.000398,3]
[314591617,1708438239568,-890.37,0.000398,3]
[314591618,1708438239582,-890.37,0.000398,3]
[314591619,1708438239591,-890.37,0.000398,3]
[314591620,1708438239601,-890.37,0.000398,3]
[314591621,1708438239610,-890.37,0.000398,3]
[314591622,1708438239622,-890.37,0.000398,3]
[314591623,1708438239631,-890.37,0.000398,3]
[314591624,1708438239641,-890.37,0.000398,3]
[314591625,1708438239651,-890.37,0.000398,3]
[314591626,1708438239663,-890.37,0.000398,3]
[314591627,1708438239672,-890.37,0.000398,3]
[314591628,1708438239681,-890.37,0.000398,3]
[314591629,1708438239690,-890.37,0.000398,3]
[314591630,1708438239700,-890.37,0.000398,3]
[314591631,1708438239710,-890.37,0.000398,3]
[314591632,1708438239719,-890.37,0.000398,3]
[314591633,1708438239728,-72947.4221903,0.00039823,5]
[314591634,1708438239738,-9287.75683744,0.00039833,2]
[314591635,1708438239747,-218842.266571,0.0003986,5]
[314591636,1708438239757,-1301263.88115326,0.0003988,2]
[314591637,1708438239766,-8266.63459984,0.0003988,2]
[314591638,1708438239776,-160.16390671,0.0003988,2]
[314591639,1708438239786,-184.32240756,0.0003988,2]
[314591640,1708438239795,-1332.35,0.000399,7]
[314591641,1708438239804,-1590.55,0.000399,7]
[314591642,1708438239816,-1979.497093,0.000399,33]
[314591643,1708438239826,-177.58,0.00039996,2]
[314591644,1708438239835,-5000.0,0.0004,4]
[314591645,1708438239845,-10000.0,0.0004,2]
[314591646,1708438239855,-11510.0,0.0004,3]
[314591647,1708438239865,-3007.55731541,0.0004,15]
[314591648,1708438239876,-500.0,0.0004,2]
[314591649,1708438239886,-155.0,0.00040026,7]
[314591650,1708438239895,-1000.0,0.00040144,2]
[314591651,1708438239905,-900.0,0.000402,2]
[314591652,1708438239916,-220.561111,0.00040255,2]
[314591653,1708438239926,-171.412714,0.00040255,2]
[314591654,1708438239935,-164.17083,0.00040255,2]
[314591655,1708438239944,-164.170831,0.00040255,2]
[314591656,1708438239954,-171.412714,0.00040255,2]
[314591657,1708438239963,-155.0,0.000403,7]
[314591658,1708438239973,-151.0,0.00040339,4]
[314591659,1708438239982,-1191.28,0.0004039,10]
[314591660,1708438239992,-2271.7,0.0004039,10]
[314591661,1708438240001,-1893.08,0.0004039,10]
[314591662,1708438240010,-1577.57,0.0004039,10]
[314591663,1708438240020,-1368.0,0.00040392,2]
[314591664,1708438240029,-2692.0,0.00040392,2]
[314591665,1708438240039,-954.0,0.00040392,2]
[314591666,1708438240048,-843.0,0.00040392,2]
[314591667,1708438240058,-1830.638,0.00040392,2]
[314591668,1708438240067,-1256.0,0.00040392,2]
[314591670,1708438240077,-1231.0,0.00040392,2]
[314591672,1708438240086,-216.0,0.00040392,2]
[314591674,1708438240095,-150.0,0.00040392,2]
[314591676,1708438240104,-311.964,0.00040392,2]
[314591678,1708438240114,-2871.0,0.00040392,2]
[314591680,1708438240123,-321.0,0.00040392,2]
[314591681,1708438240132,-454.0,0.00040392,2]
[314591682,1708438240142,-1500.0,0.000404,33]
[314591683,1708438240151,-425.4,0.00040416,2]
[314591684,1708438240160,-4165.0576542,0.00040515,30]
[314591685,1708438240172,-177.58,0.00040544,2]
[314591686,1708438240181,-282.799394,0.00040548,14]
[314591687,1708438240191,-154.0,0.00040574,7]
[314591688,1708438240200,-150.607816,0.000406,2]
[314591689,1708438240210,-346.12581354,0.00040607,120]
[314591690,1708438240219,-775.62254177,0.00040607,2]
[314591691,1708438240229,-10014.29926872,0.00040607,2]
[314591692,1708438240239,-175.38195904,0.00040607,31]
[314591693,1708438240248,-56691.15231673,0.00040607,7]
[314591694,1708438240258,-681.82057314,0.00040607,14]
[314591695,1708438240267,-666.0,0.00040607,2]
[314591696,1708438240276,-6491.67051448,0.00040645,16]
[314591697,1708438240286,-3245.83525724,0.00040645,14]
[314591698,1708438240295,-10357.04908473,0.00040645,16]
[314591699,1708438240305,-56271.75135472,0.00040645,15]
[314591700,1708438240315,-4964.57826269,0.00040645,9]
[314591701,1708438240324,-220.561111,0.00040746,2]
[314591702,1708438240334,-154.0,0.00040848,7]
[314591703,1708438240344,-1332.35,0.000409,7]
[314591704,1708438240354,-1590.55,0.000409,7]
[314591705,1708438240363,-150.0,0.00040969,2]
[314591706,1708438240373,-300.0,0.00040969,7]
[314591707,1708438240382,-516.19120909,0.00040969,12]
[314591708,1708438240391,-5619.63436251,0.00041,120]
[314591709,1708438240400,-177.58,0.00041092,2]
[314591710,1708438240410,-1000.0,0.00041095,60]
[314591711,1708438240421,-152.3,0.00041096,2]
[314591712,1708438240431,-16110.53,0.00041096,2]
[314591713,1708438240440,-689.49,0.000411,2]
[314591714,1708438240450,-689.49,0.000411,2]
[314591715,1708438240459,-689.49,0.000411,2]
[314591716,1708438240469,-689.49,0.000411,2]
[314591717,1708438240478,-689.49,0.000411,2]
[314591718,1708438240488,-689.49,0.000411,2]
[314591719,1708438240497,-689.49,0.000411,2]
[314591720,1708438240506,-689.49,0.000411,2]
[314591721,1708438240517,-689.49,0.000411,2]
[314591722,1708438240526,-689.49,0.000411,2]
[314591723,1708438240536,-154.0,0.00041122,7]
[314591724,1708438240545,-151.0,0.00041163,2]
[314591725,1708438240555,-1015.01051749,0.00041216,5]
[314591726,1708438240564,-220.561111,0.00041236,30]
[314591727,1708438240576,-171.412714,0.00041236,30]
[314591728,1708438240585,-164.17083,0.00041236,30]
[314591729,1708438240595,-164.170831,0.00041236,30]
[314591730,1708438240605,-171.412714,0.00041236,30]
[314591731,1708438240615,-269.89786815,0.000413,4]
[314591732,1708438240625,-282.799394,0.0004137,14]
[314591733,1708438240634,-150.0,0.0004139,30]
[314591734,1708438240644,-154.0,0.00041396,7]
[314591735,1708438240654,-9287.75683744,0.00041511,3]
[314591736,1708438240670,-462.20626296,0.00041623,10]
[314591737,1708438240684,-207.22728549,0.00041623,10]
[314591738,1708438240697,-177.58,0.0004164,2]
[314591740,1708438240710,-154.0,0.0004167,7]
[314591741,1708438240723,-890.37,0.000418,4]
[314591743,1708438240735,-890.37,0.000418,4]
[314591744,1708438240745,-890.37,0.000418,4]
[314591745,1708438240756,-890.37,0.000418,4]
[314591746,1708438240770,-890.37,0.000418,4]
[314591747,1708438240781,-890.37,0.000418,4]
[314591748,1708438240793,-890.37,0.000418,4]
[314591749,1708438240804,-890.37,0.000418,4]
[314591750,1708438240817,-890.37,0.000418,4]
[314591751,1708438240830,-890.37,0.000418,4]
[314591752,1708438240841,-890.37,0.000418,4]
[314591753,1708438240854,-890.37,0.000418,4]
[314591754,1708438240866,-890.37,0.000418,4]
[314591755,1708438240877,-890.37,0.000418,4]
[314591756,1708438240887,-890.37,0.000418,4]
[314591757,1708438240899,-890.37,0.000418,4]
[314591758,1708438240910,-890.37,0.000418,4]
[314591759,1708438240923,-890.37,0.000418,4]
[314591760,1708438240934,-890.37,0.000418,4]
[314591761,1708438240946,-890.37,0.000418,4]
[314591762,1708438240957,-4333.0,0.00041829,2]
[314591763,1708438240969,-154.0,0.00041944,7]
[314591764,1708438240980,-454.88,0.00041963,2]
[314591765,1708438240992,-207.0,0.00041998,10]
[314591766,1708438241004,-1332.35,0.00042,7]
[314591767,1708438241014,-1590.55,0.00042,7]
[314591768,1708438241024,-1092.22,0.00042092,15]
[314591769,1708438241034,-352.94,0.00042188,2]
[314591770,1708438241048,-282.799394,0.00042192,14]
[314591771,1708438241059,-154.0,0.00042218,7]
[314591772,1708438241070,-4924.413,0.00042294,2]
[314591773,1708438241082,-2292.0,0.00042294,2]
[314591774,1708438241095,-19872.0,0.00042294,2]
[314591775,1708438241106,-3091.971,0.00042294,2]
[314591776,1708438241118,-8174.0,0.00042294,2]
[314591777,1708438241128,-2931.0,0.00042294,2]
[314591778,1708438241140,-4103.0,0.00042294,2]
[314591779,1708438241152,-827.084,0.00042294,2]
[314591780,1708438241165,-154.0,0.00042492,7]
[314591781,1708438241178,-1610.52547451,0.000425,60]
[314591782,1708438241190,-162.57744651,0.00042521,10]
[314591783,1708438241202,-1663.51929885,0.0004274,4]
[314591784,1708438241214,-183.51379447,0.0004274,4]
[314591785,1708438241228,-383.48596239,0.0004274,4]
[314591786,1708438241242,-1016.97178799,0.0004274,5]
[314591787,1708438241253,-508.48589399,0.0004274,5]
[314591788,1708438241266,-190.26172397,0.0004274,4]
[314591789,1708438241276,-529.44363084,0.0004274,5]
[314591790,1708438241287,-207.0,0.00042748,10]
[314591791,1708438241298,-154.0,0.00042766,7]
[314591792,1708438241309,-1015.01051749,0.00042795,5]
[314591793,1708438241321,-5544.10850231,0.000429,5]
[314591794,1708438241334,-1830.6867938,0.00043,2]
[314591795,1708438241346,-282.799394,0.00043014,14]
[314591796,1708438241357,-154.0,0.0004304,7]
[314591797,1708438241368,-1332.35,0.000431,7]
[314591798,1708438241380,-1590.55,0.000431,7]
[314591799,1708438241392,-9287.75683744,0.00043189,5]
[314591800,1708438241403,-813.68,0.0004319,2]
[314591801,1708438241416,-635.98865077,0.00043264,5]
[314591802,1708438241426,-154.0,0.00043314,7]
[314591803,1708438241437,-2690.0,0.00043392,2]
[314591804,1708438241447,-737.922,0.00043392,2]
[314591805,1708438241458,-841.0,0.00043392,2]
[314591806,1708438241470,-1256.0,0.00043392,2]
[314591807,1708438241480,-216.0,0.00043392,2]
[314591808,1708438241491,-1231.0,0.00043392,2]
[314591809,1708438241502,-321.0,0.00043392,2]
[314591810,1708438241512,-454.0,0.00043392,2]
[314591811,1708438241523,-1285.35,0.00043434,2]
[314591812,1708438241533,-207.0,0.00043498,10]
[314591813,1708438241544,-154.0,0.00043588,7]
[314591814,1708438241554,-1000.0,0.000436,11]
[314591815,1708438241565,-462.20626296,0.00043693,11]
[314591816,1708438241577,-207.22728549,0.00043693,11]
[314591817,1708438241588,-754.46,0.00043725,2]
[314591818,1708438241599,-389.62523395,0.0004375,4]
[314591819,1708438241612,-3755.0,0.000438,120]
[314591820,1708438241625,-890.37,0.000438,4]
[314591821,1708438241636,-890.37,0.000438,4]
[314591822,1708438241647,-890.37,0.000438,4]
[314591823,1708438241658,-890.37,0.000438,4]
[314591824,1708438241674,-890.37,0.000438,4]
[314591825,1708438241685,-890.37,0.000438,4]
[314591826,1708438241696,-890.37,0.000438,4]
[314591827,1708438241707,-890.37,0.000438,4]
[314591828,1708438241718,-890.37,0.000438,4]
[314591829,1708438241729,-890.37,0.000438,4]
[314591830,1708438241740,-890.37,0.000438,4]
[314591831,1708438241750,-890.37,0.000438,4]
[314591832,1708438241761,-890.37,0.000438,4]
[314591833,1708438241772,-890.37,0.000438,4]
[314591834,1708438241783,-890.37,0.000438,4]
[314591835,1708438241794,-890.37,0.000438,4]
[314591836,1708438241805,-890.37,0.000438,4]
[314591837,1708438241817,-890.37,0.000438,4]
[314591838,1708438241828,-890.37,0.000438,4]
[314591839,1708438241838,-890.37,0.000438,4]
[314591840,1708438241849,-2774.0,0.000438,30]
[314591841,1708438241860,-754.0,0.000438,30]
[314591842,1708438241872,-1000.0,0.00043835,70]
[314591843,1708438241885,-800.0,0.00043835,2]
[314591844,1708438241896,-152.3,0.00043836,2]
[314591845,1708438241907,-282.799394,0.00043836,14]
[314591846,1708438241919,-154.0,0.00043862,7]
[314591847,1708438241930,-154.0,0.00044136,7]
[314591848,1708438241941,-1000.0,0.00044158,2]
[314591849,1708438241952,-454.88,0.00044227,2]
[314591850,1708438241962,-207.0,0.00044248,10]
[314591851,1708438241973,-1015.01051749,0.00044374,5]
[314591852,1708438241984,-154.0,0.0004441,7]
[314591854,1708438241995,-11140.6728505,0.00044526,2]
[314591855,1708438242006,-531.48704839,0.00044526,2]
[314591856,1708438242017,-651.54682656,0.00044526,2]
[314591857,1708438242029,-284.99277417,0.00044526,2]
[314591858,1708438242040,-1041.81811488,0.00044526,2]
[314591860,1708438242052,-800.0,0.00044657,2]
[314591862,1708438242063,-282.799394,0.00044658,14]
[314591864,1708438242074,-9287.75683744,0.00044867,6]
[314591866,1708438242084,-295.0,0.000449,34]
[314591868,1708438242095,-1000.0,0.00044911,4]
[314591870,1708438242106,-635.98865077,0.00044923,6]
[314591872,1708438242117,-36232.47832651,0.00044951,5]
[314591873,1708438242129,-101758.34902226,0.00044969,2]
[314591874,1708438242139,-3013.41337991,0.0004498,3]
[314591875,1708438242149,-207.0,0.00044998,11]
[314591876,1708438242160,-255.40425517,0.00045,4]
[314591877,1708438242174,-335.57765101,0.00045,4]
[314591878,1708438242184,-2292.0,0.00045294,2]
[314591879,1708438242195,-19872.0,0.00045294,2]
[314591880,1708438242206,-8174.0,0.00045294,2]
[314591881,1708438242217,-2931.0,0.00045294,2]
[314591882,1708438242227,-4103.0,0.00045294,2]
[314591883,1708438242238,-295.0,0.000454,35]
[314591884,1708438242248,-310.36,0.00045473,2]
[314591885,1708438242259,-608.04891047,0.00045479,2]
[314591886,1708438242269,-282.799394,0.00045479,14]
[314591887,1708438242280,-151.0,0.00045736,2]
[314591888,1708438242291,-250.49088,0.00045736,2]
[314591889,1708438242302,-207.0,0.00045748,14]
[314591890,1708438242314,-462.20626296,0.00045762,12]
[314591891,1708438242324,-207.22728549,0.00045762,12]
[314591892,1708438242336,-200.0,0.000458,2]
[314591893,1708438242347,-890.37,0.000458,5]
[314591894,1708438242358,-890.37,0.000458,5]
[314591895,1708438242369,-890.37,0.000458,5]
[314591896,1708438242379,-890.37,0.000458,5]
[314591897,1708438242390,-890.37,0.000458,5]
[314591898,1708438242401,-890.37,0.000458,5]
[314591899,1708438242412,-890.37,0.000458,5]
[314591900,1708438242424,-890.37,0.000458,5]
[314591901,1708438242436,-890.37,0.000458,5]
[314591902,1708438242446,-890.37,0.000458,5]
[314591903,1708438242458,-890.37,0.000458,5]
[314591904,1708438242468,-890.37,0.000458,5]
[314591905,1708438242478,-890.37,0.000458,5]
[314591906,1708438242489,-890.37,0.000458,5]
[314591907,1708438242500,-890.37,0.000458,5]
[314591908,1708438242511,-890.37,0.000458,5]
[314591909,1708438242521,-890.37,0.000458,5]
[314591910,1708438242533,-890.37,0.000458,5]
[314591911,1708438242544,-890.37,0.000458,5]
[314591912,1708438242556,-890.37,0.000458,5]
[314591913,1708438242568,-1092.22,0.00045828,15]
[314591914,1708438242584,-318.0,0.000459,36]
[314591915,1708438242596,-1015.01051749,0.00045953,5]
[314591916,1708438242608,-200.0,0.00045987,72]
[314591917,1708438242620,-2000.0,0.00046,2]
[314591918,1708438242632,-1000.0,0.00046,17]
[314591919,1708438242643,-2000.0,0.00046054,2]
[314591920,1708438242654,-813.68,0.0004606,2]
[314591921,1708438242669,-162.57744651,0.00046161,12]
[314591922,1708438242682,-202.376581,0.00046299,10]
[314591923,1708438242694,-282.799394,0.00046301,14]
[314591924,1708438242707,-1255.0,0.00046392,2]
[314591925,1708438242718,-1231.0,0.00046392,2]
[314591926,1708438242731,-321.0,0.00046392,2]
[314591927,1708438242743,-454.0,0.00046392,2]
[314591928,1708438242754,-454.88,0.00046491,2]
[314591929,1708438242766,-207.0,0.00046499,16]
[314591930,1708438242776,-1590.55,0.000465,7]
[314591931,1708438242786,-302.0,0.00046505,4]
[314591932,1708438242795,-9287.75683744,0.00046544,8]
[314591933,1708438242805,-500.0,0.00046575,6]
[314591934,1708438242815,-500.0,0.00046575,6]
[314591935,1708438242825,-385.34429368,0.00046575,6]
[314591936,1708438242834,-500.0,0.00046575,6]
[314591940,1708438243096,-535.99943571,0.00046575,6]
[314591941,1708438243106,-150.0,0.00046575,2]
[314591942,1708438243116,-500.0,0.00046575,6]
[314591943,1708438243125,-500.0,0.00046575,6]
[314591944,1708438243135,-529.34547031,0.00046575,6]
[314591945,1708438243144,-519.35411886,0.00046575,6]
[314591946,1708438243153,-1000.0,0.00046575,7]
[314591947,1708438243162,-500.0,0.00046575,6]
[314591948,1708438243173,-500.0,0.00046575,6]
[314591949,1708438243182,-499.27070265,0.00046575,6]
[314591950,1708438243191,-517.58227991,0.00046575,6]
[314591951,1708438243200,-500.0,0.00046575,6]
[314591952,1708438243210,-500.0,0.00046575,6]
[314591954,1708438243220,-500.0,0.00046575,6]
[314591956,1708438243229,-521.00546326,0.00046575,6]
[314591958,1708438243240,-500.0,0.00046575,6]
[314591959,1708438243249,-512.21867618,0.00046575,6]
[314591960,1708438243259,-313.21190354,0.00046575,6]
[314591961,1708438243268,-507.99460736,0.00046575,6]
[314591962,1708438243278,-537.13615495,0.00046575,6]
[314591963,1708438243287,-518.61050765,0.00046575,6]
[314591964,1708438243296,-506.60434657,0.00046575,6]
[314591965,1708438243307,-494.2555993,0.00046575,6]
[314591966,1708438243316,-317.36512283,0.00046575,6]
[314591967,1708438243325,-500.0,0.00046575,6]
[314591968,1708438243335,-535.95951786,0.00046575,6]
[314591969,1708438243344,-512.60233803,0.00046575,6]
[314591970,1708438243353,-404.07000559,0.00046575,6]
[314591971,1708438243362,-589.7800519,0.00046575,6]
[314591972,1708438243372,-513.33210425,0.00046575,6]
[314591973,1708438243382,-500.0,0.00046575,6]
[314591974,1708438243391,-500.0,0.00046575,6]
[314591975,1708438243400,-500.0,0.00046575,6]
[314591976,1708438243409,-196.65743216,0.00046575,6]
[314591977,1708438243421,-500.0,0.00046575,6]
[314591978,1708438243430,-500.0,0.00046575,6]
[314591979,1708438243440,-500.0,0.00046575,6]
[314591980,1708438243449,-512.33358062,0.00046575,6]
[314591981,1708438243458,-507.75064367,0.00046575,6]
[314591982,1708438243468,-525.54881652,0.00046575,6]
[314591983,1708438243478,-500.0,0.00046575,6]
[314591984,1708438243487,-511.81295225,0.00046575,6]
[314591985,1708438243496,-509.84399914,0.00046575,6]
[314591986,1708438243505,-500.0,0.00046575,6]
[314591987,1708438243515,-519.17862808,0.00046575,6]
[314591988,1708438243524,-500.0,0.00046575,6]
[314591989,1708438243533,-507.09921903,0.00046575,6]
[314591990,1708438243542,-557.57000563,0.00046575,6]
[314591991,1708438243551,-500.0,0.00046575,6]
[314591993,1708438243561,-500.0,0.00046575,6]
[314591994,1708438243570,-510.70103441,0.00046575,6]
[314591996,1708438243581,-536.73753223,0.00046575,6]
[314591997,1708438243591,-510.55731729,0.00046575,6]
[314591998,1708438243600,-509.61464899,0.00046575,6]
[314591999,1708438243611,-500.0,0.00046575,6]
[314592000,1708438243620,-500.0,0.00046575,6]
[314592001,1708438243630,-500.0,0.00046575,14]
[314592002,1708438243639,-500.0,0.00046575,6]
[314592003,1708438243649,-500.0,0.00046575,6]
[314592004,1708438243658,-500.0,0.00046575,6]
[314592005,1708438243670,-524.39353,0.00046575,6]
[314592007,1708438243680,-500.0,0.00046575,6]
[314592009,1708438243690,-503.16608839,0.00046575,6]
[314592011,1708438243702,-500.0,0.00046575,6]
[314592012,1708438243713,-296.90117551,0.00046575,6]
[314592013,1708438243723,-500.0,0.00046575,6]
[314592014,1708438243733,-529.23879601,0.00046575,6]
[314592015,1708438243744,-500.0,0.00046575,6]
[314592016,1708438243754,-601.09117522,0.00046575,6]
[314592017,1708438243764,-500.0,0.00046575,6]
[314592018,1708438243775,-500.0,0.00046575,6]
[314592019,1708438243785,-529.07467007,0.00046575,6]
[314592020,1708438243796,-500.0,0.00046575,6]
[314592021,1708438243807,-519.44408238,0.00046575,6]
[314592022,1708438243818,-400.0,0.00046575,6]
[314592023,1708438243828,-500.0,0.00046575,6]
[314592024,1708438243838,-500.0,0.00046575,6]
[314592025,1708438243849,-632.05038922,0.00046575,6]
[314592026,1708438243859,-525.01916273,0.00046575,6]
[314592027,1708438243869,-535.39893865,0.00046575,6]
[314592028,1708438243879,-523.44883114,0.00046575,6]
[314592029,1708438243888,-500.0,0.00046575,6]
[314592030,1708438243897,-500.0,0.00046575,6]
[314592031,1708438243906,-517.69436096,0.00046575,6]
[314592032,1708438243918,-500.0,0.00046575,6]
[314592034,1708438243927,-500.0,0.00046575,6]
[314592036,1708438243936,-541.18312316,0.00046575,6]
[314592038,1708438243945,-500.0,0.00046575,6]
[314592040,1708438243954,-500.0,0.00046575,6]
[314592042,1708438243963,-500.0,0.00046575,6]
[314592044,1708438243973,-500.0,0.00046575,6]
[314592046,1708438243983,-500.0,0.00046575,6]
[314592048,1708438243992,-500.0,0.00046575,6]
[314592050,1708438244001,-409.93725099,0.00046575,6]
[314592052,1708438244010,-547.20419848,0.00046575,6]
[314592054,1708438244019,-500.0,0.00046575,6]
[314592056,1708438244028,-500.0,0.00046575,6]
[314592058,1708438244038,-544.71208913,0.00046575,6]
[314592060,1708438244047,-500.0,0.00046575,6]
[314592062,1708438244056,-500.0,0.00046575,6]
[314592063,1708438244065,-500.0,0.00046575,6]
[314592065,1708438244074,-500.0,0.00046575,6]
[314592066,1708438244083,-500.0,0.00046575,6]
[314592067,1708438244092,-500.0,0.00046575,6]
[314592068,1708438244101,-500.0,0.00046575,6]
[314592069,1708438244110,-500.0,0.00046575,6]
[314592070,1708438244120,-509.12610304,0.00046575,6]